[Event "1.FrauenBL 2016-17"]
[Site "Berlin"]
[Date "2017.04.29"]
[Round "9.4"]
[White "Boehm, Jana"]
[Black "Anisheva, Varvara"]
[Result "0-1"]
[ECO "B49"]
[WhiteElo "1963"]
[BlackElo "2130"]
[Annotator "NA"]
[PlyCount "72"]
[EventDate "2017.??.??"]
[EventType "team-tourn"]
[EventCountry "GER"]
[SourceTitle "playchess.com"]
[Source "ChessBase"]
[SourceQuality "1"]
[WhiteTeam "SK Lehrte"]
[BlackTeam "SV Medizin Erfurt"]
[TimeControl "40/6000+30:3000+30"]

1. e4 {[%emt 1:30:27]} c5 {[%emt 1:30:17]} 2. Nf3 {[%emt 1:30:53]} Nc6 {[%emt 1:30:34]} 3. d4 {[%emt 1:31:18]} cxd4 {[%emt 1:30:54]} 4. Nxd4 {[%emt 1:31:44]} Qc7 {[%emt 1:31:44]} 5. Nc3 {[%emt 1:28:00]} e6 {[%emt 1:30:48]} 6. Be2 {[%emt 1:26:35]} a6 {[%emt 1:30:52]} 7. O-O {[%emt 1:30:52]} Nf6 {[%emt 1:30:27]} 8. Be3 {[%emt 1:22:33]} Bb4 {[%emt 1:22:33]} 9. f3 {[%emt 1:19:54]} O-O {[%emt 1:15:22]} 10. Nxc6 {[%emt 1:13:10]} bxc6 {[%emt 1:03:42]} 11. Na4 {[%emt 1:07:09]} Bd6 {[%emt 1:07:09]} 12. g3 {[%emt 0:57:59]} Bxg3 {[%emt 0:56:56]} 13. hxg3 {[%emt 0:57:26]} Qxg3+ {[%emt 0:53:43]} 14. Kh1 {[%emt 0:45:27]} Nxe4 {[%emt 0:46:51]} 15. Bg1 {[%emt 0:36:22]} Qh4+ {[%emt 0:41:49]} 16. Kg2 {[%emt 0:36:29]} Qg5+ {[%emt 0:36:29]} 17. Kh2 {[%emt 0:40:58]} Ng3 {[%emt 0:37:09]} 18. Nc5 {[%emt 0:33:23]} Nxf1+ {[%emt 0:31:17]} 19. Bxf1 {[%emt 0:31:17]} d5 {[%emt 0:33:13]} 20. Qe1 {[%emt 0:30:12]} f5 {[%emt 0:24:20]} 21. Nd3 {[%emt 0:27:07]} Qh5+ {[%emt 0:18:57]} 22. Kg2 {[%emt 0:26:37]} f4 {[%emt 0:17:12]} 23. Bh2 {[%emt 0:23:58]} e5 {[%emt 0:15:21]} 24. Qxe5 {[%emt 0:19:51]} Bh3+ {[%emt 0:11:42]} 25. Kf2 {[%emt 0:18:38]} Qh4+ {[%emt 0:11:44]} 26. Kg1 {[%emt 0:11:44]} Rae8 {[%emt 0:18:50]} 27. Qd4 {[%emt 0:11:01]} Bxf1 {[%emt 0:09:40]} 28. Rxf1 {[%emt 0:18:16]} Re2 {[%emt 0:08:06]} 29. Rf2 {[%emt 0:18:19]} Rxf2 {[%emt 0:08:15]} 30. Nxf2 {[%emt 0:17:27]} Rf6 {[%emt 0:07:11]} 31. Qe5 {[%emt 0:13:29]} h6 {[%emt 0:05:52]} 32. Ng4 {[%emt 0:10:38]} Rg6 {[%emt 0:05:17]} 33. Kf1 {[%emt 0:09:29]} h5 {[%emt 0:02:35]} 34. Qe8+ {[%emt 0:07:46]} Kh7 {[%emt 0:02:57]} 35. Ne5 {[%emt 0:07:35]} Qh3+ {[%emt 0:03:16]} 36. Ke1 {[%emt 0:07:50]} Re6 {[%emt 0:03:35]} 0-1

[Event "1.FrauenBL 2016-17"]
[Site "Berlin"]
[Date "2017.04.29"]
[Round "9.5"]
[White "Korenova, Martina"]
[Black "Yurenok, Maria S"]
[Result "1/2-1/2"]
[ECO "A58"]
[WhiteElo "2154"]
[BlackElo "2005"]
[Annotator "NA"]
[PlyCount "62"]
[EventDate "2017.??.??"]
[EventType "team-tourn"]
[EventCountry "GER"]
[SourceTitle "playchess.com"]
[Source "ChessBase"]
[SourceQuality "1"]
[WhiteTeam "Rodewischer SM"]
[BlackTeam "SC Bad Königshofen"]
[TimeControl "40/6000+30:3000+30"]

1. d4 {[%emt 1:30:30]} Nf6 {[%emt 1:30:17]} 2. c4 {[%emt 1:30:32]} g6 {[%emt 1:30:29]} 3. Nc3 {[%emt 1:30:56]} Bg7 {[%emt 1:30:44]} 4. e4 {[%emt 1:31:15]} d6 {[%emt 1:31:00]} 5. f4 {[%emt 1:31:29]} O-O {[%emt 1:31:00]} 6. Nf3 {[%emt 1:31:54]} c5 {[%emt 1:30:52]} 7. d5 {[%emt 1:32:19]} b5 {[%emt 1:30:49]} 8. cxb5 {[%emt 1:30:24]} a6 {[%emt 1:31:05]} 9. bxa6 {[%emt 1:28:55]} Qa5 {[%emt 1:27:55]} 10. Bd2 {[%emt 1:21:15]} Bxa6 {[%emt 1:26:26]} 11. Bxa6 {[%emt 1:18:18]} Qxa6 {[%emt 1:26:50]} 12. Qe2 {[%emt 1:17:56]} Qxe2+ {[%emt 1:22:05]} 13. Kxe2 {[%emt 1:18:11]} Nfd7 {[%emt 1:22:31]} 14. Rhe1 {[%emt 1:14:08]} Na6 {[%emt 1:21:54]} 15. Rac1 {[%emt 1:09:59]} Rfb8 {[%emt 1:19:53]} 16. b3 {[%emt 1:09:13]} Nb4 {[%emt 1:16:34]} 17. a4 {[%emt 0:59:13]} f5 {[%emt 1:06:25]} 18. e5 {[%emt 0:48:47]} dxe5 {[%emt 0:59:43]} 19. fxe5 {[%emt 0:59:43]} Nxe5 {[%emt 0:59:51]} 20. Nxe5 {[%emt 0:47:50]} Bxe5 {[%emt 1:00:13]} 21. Nb5 {[%emt 0:47:56]} Rc8 {[%emt 0:39:59]} 22. Bxb4 {[%emt 0:35:41]} cxb4 {[%emt 0:40:19]} 23. Rxc8+ {[%emt 0:40:19]} Rxc8 {[%emt 0:35:43]} 24. Kd3 {[%emt 0:40:43]} Bf6 {[%emt 0:34:48]} 25. Re6 {[%emt 0:26:07]} Rc5 {[%emt 0:22:04]} 26. d6 {[%emt 0:26:12]} Kf7 {[%emt 0:21:51]} 27. dxe7 {[%emt 0:26:09]} Bxe7 {[%emt 0:26:09]} 28. Rb6 {[%emt 0:21:35]} Rd5+ {[%emt 0:17:28]} 29. Ke2 {[%emt 0:25:56]} Re5+ {[%emt 0:25:56]} 30. Kd3 {[%emt 0:19:00]} Rd5+ {[%emt 0:15:29]} 31. Ke2 {[%emt 0:16:28]} Re5+ {[%emt 0:15:54] Nd6 0:15:54 Ke8 0:15:54 Ke1 0:15:54 --- 0:15:54 Rc6 0:15:54} 1/2-1/2

[Event "1.FrauenBL 2016-17"]
[Site "Berlin"]
[Date "2017.04.29"]
[Round "9.5"]
[White "Umpfenbach, Carolin"]
[Black "Zschischang, Marine"]
[Result "1-0"]
[ECO "A53"]
[WhiteElo "2131"]
[BlackElo "2037"]
[Annotator "NA"]
[PlyCount "121"]
[EventDate "2017.??.??"]
[EventType "team-tourn"]
[EventCountry "GER"]
[SourceTitle "playchess.com"]
[Source "ChessBase"]
[SourceQuality "1"]
[WhiteTeam "SV Medizin Erfurt"]
[BlackTeam "SK Lehrte"]
[TimeControl "40/6000+30:3000+30"]

1. d4 {[%emt 1:30:22]} Nf6 {[%emt 1:30:22]} 2. c4 {[%emt 1:30:36]} d6 {[%emt 1:30:02]} 3. Nc3 {[%emt 1:29:42]} Nbd7 {[%emt 1:30:11]} 4. e4 {[%emt 1:27:04]} e5 {[%emt 1:30:12]} 5. d5 {[%emt 1:17:21]} Nc5 {[%emt 1:28:21]} 6. Qc2 {[%emt 1:12:44]} a5 {[%emt 1:27:57]} 7. g3 {[%emt 1:07:04]} g6 {[%emt 1:20:46]} 8. Bg2 {[%emt 1:05:57]} Bg7 {[%emt 1:20:33]} 9. Nge2 {[%emt 1:01:50]} Bd7 {[%emt 1:01:50]} 10. Bd2 {[%emt 0:58:05]} Qc8 {[%emt 1:12:50]} 11. h3 {[%emt 0:47:17]} h5 {[%emt 1:06:15]} 12. h4 {[%emt 0:30:01]} a4 {[%emt 0:30:01]} 13. O-O {[%emt 0:27:13]} O-O {[%emt 0:27:13]} 14. b4 {[%emt 0:22:49]} axb3 {[%emt 0:38:42]} 15. axb3 {[%emt 0:23:13]} Rxa1 {[%emt 0:34:42]} 16. Rxa1 {[%emt 0:23:38]} Na6 {[%emt 0:29:40]} 17. Nd1 {[%emt 0:10:39]} Ne8 {[%emt 0:24:44]} 18. b4 {[%emt 0:09:37]} f5 {[%emt 0:22:40]} 19. Ra3 {[%emt 0:08:21]} c6 {[%emt 0:18:43]} 20. Qa2 {[%emt 0:06:51]} cxd5 {[%emt 0:17:23]} 21. exd5 {[%emt 0:06:41]} Qd8 {[%emt 0:13:59]} 22. Qc2 {[%emt 0:05:42]} Qe7 {[%emt 0:05:42]} 23. Ra5 {[%emt 0:04:47]} Kh7 {[%emt 0:04:05]} 24. c5 {[%emt 0:04:05]} f4 {[%emt 0:04:26]} 25. Be4 {[%emt 0:04:50]} Bf5 {[%emt 0:04:05]} 26. c6 {[%emt 0:04:43]} bxc6 {[%emt 0:01:42]} 27. Rxa6 {[%emt 0:01:42]} cxd5 {[%emt 0:04:14]} 28. Bxf5 {[%emt 0:04:27]} gxf5 {[%emt 0:01:49]} 29. Ra3 {[%emt 0:03:39]} d4 {[%emt 0:01:49]} 30. b5 {[%emt 0:03:25]} f3 {[%emt 0:00:48]} 31. Rxf3 {[%emt 0:00:48]} e4 {[%emt 0:03:02]} 32. Rb3 {[%emt 0:01:56]} d3 {[%emt 0:01:41]} 33. Qc4 {[%emt 0:02:04]} d5 {[%emt 0:00:36]} 34. Qxd5 {[%emt 0:01:56]} dxe2 {[%emt 0:00:58]} 35. Nc3 {[%emt 0:01:36]} e3 {[%emt 0:00:28]} 36. Be1 {[%emt 0:01:17]} exf2+ {[%emt 0:00:54]} 37. Kxf2 {[%emt 0:01:30]} f4 {[%emt 0:00:46]} 38. Qxh5+ {[%emt 0:01:23]} Bh6 {[%emt 0:00:47]} 39. Qxe2 {[%emt 0:01:03]} Qc5+ {[%emt 0:00:42]} 40. Kf1 {[%emt 0:00:14]} fxg3+ {[%emt 0:00:54]} 41. Kg2 {[%emt 0:00:41]} Nd6 {[%emt 0:00:41]} 42. Bxg3 {[%emt 0:27:56]} Nf5 {[%emt 0:03:38]} 43. Qe4 {[%emt 0:07:49]} Bg7 {[%emt 0:02:30]} 44. Nd5 {[%emt 0:06:06]} Kh8 {[%emt 0:02:00]} 45. Rf3 {[%emt 0:04:45]} Nxg3 {[%emt 0:01:50]} 46. Rxf8+ {[%emt 0:03:33]} Qxf8 {[%emt 0:01:50]} 47. Kxg3 {[%emt 0:03:40]} Qb8+ {[%emt 0:02:15]} 48. Kg4 {[%emt 0:02:15]} Qxb5 {[%emt 0:02:39]} 49. Nf4 {[%emt 0:02:41]} Qd7+ {[%emt 0:02:31]} 50. Ne6 {[%emt 0:02:15]} Qd1+ {[%emt 0:02:15]} 51. Kg3 {[%emt 0:02:14]} Qg1+ {[%emt 0:01:56]} 52. Kh3 {[%emt 0:01:56]} Qf1+ {[%emt 0:02:18]} 53. Kg4 {[%emt 0:02:22]} Qg1+ {[%emt 0:02:16]} 54. Kh5 {[%emt 0:02:19]} Qd1+ {[%emt 0:02:19]} 55. Kg6 {[%emt 0:02:23]} Qg1+ {[%emt 0:02:11]} 56. Ng5 {[%emt 0:02:21]} Qc5 {[%emt 0:00:06]} 57. Kh5 {[%emt 0:01:38]} Kg8 {[%emt 0:00:27]} 58. Qe6+ {[%emt 0:01:55]} Kh8 {[%emt 0:01:55]} 59. Qg6 {[%emt 0:00:41]} Kg8 {[%emt 0:01:03]} 60. Qe8+ {[%emt 0:01:41]} Bf8 {[%emt 0:01:08]} 61. Qf7+ {[%emt 0:02:02] --- 0:02:02 Qe8 0:02:02 Qg1 0:02:02} 1-0

[Event "1.FrauenBL 2016-17"]
[Site "Berlin"]
[Date "2017.04.29"]
[Round "9.6"]
[White "Schneider, Jana"]
[Black "Steinbacher, Claudia"]
[Result "1/2-1/2"]
[ECO "B40"]
[WhiteElo "2224"]
[BlackElo "2043"]
[Annotator "NA"]
[PlyCount "107"]
[EventDate "2017.??.??"]
[EventType "team-tourn"]
[EventCountry "GER"]
[SourceTitle "playchess.com"]
[Source "ChessBase"]
[SourceQuality "1"]
[WhiteTeam "SC Bad Königshofen"]
[BlackTeam "Rodewischer SM"]
[TimeControl "40/6000+30:3000+30"]

1. e4 {[%emt 1:30:26]} c5 {[%emt 1:30:26]} 2. Nf3 {[%emt 1:30:48]} e6 {[%emt 1:30:10]} 3. g3 {[%emt 1:30:55]} Nc6 {[%emt 1:29:35]} 4. Bg2 {[%emt 1:29:35]} d6 {[%emt 1:28:50]} 5. O-O {[%emt 1:31:23]} g6 {[%emt 1:28:26]} 6. c3 {[%emt 1:31:01]} Nf6 {[%emt 1:26:18]} 7. Re1 {[%emt 1:30:04]} Bg7 {[%emt 1:24:51]} 8. d4 {[%emt 1:29:22]} O-O {[%emt 1:18:36]} 9. Bf4 {[%emt 1:21:02]} Nh5 {[%emt 1:11:06]} 10. Be3 {[%emt 1:20:08]} cxd4 {[%emt 1:10:32]} 11. Nxd4 {[%emt 1:10:32]} Nxd4 {[%emt 1:07:03]} 12. Bxd4 {[%emt 1:13:05]} e5 {[%emt 1:04:40]} 13. Be3 {[%emt 1:12:56]} Be6 {[%emt 1:04:33]} 14. Qd3 {[%emt 1:04:33]} Qd7 {[%emt 1:00:29]} 15. Na3 {[%emt 0:57:34]} Rfd8 {[%emt 0:55:04]} 16. Red1 {[%emt 0:55:22]} Bf8 {[%emt 0:49:19]} 17. c4 {[%emt 0:50:44]} Qa4 {[%emt 0:38:39]} 18. Rac1 {[%emt 0:48:59]} Rac8 {[%emt 0:48:59]} 19. Qc2 {[%emt 0:46:27]} Qxc2 {[%emt 0:36:15]} 20. Rxc2 {[%emt 0:46:48]} a6 {[%emt 0:36:34]} 21. Bb6 {[%emt 0:36:34]} Re8 {[%emt 0:42:38]} 22. Ba5 {[%emt 0:38:19]} Rc6 {[%emt 0:32:40]} 23. b3 {[%emt 0:33:59]} Nf6 {[%emt 0:33:59]} 24. Rcd2 {[%emt 0:32:32]} Nd7 {[%emt 0:32:32]} 25. Nc2 {[%emt 0:23:04]} b6 {[%emt 0:19:40]} 26. Bb4 {[%emt 0:29:16]} Nc5 {[%emt 0:20:05]} 27. Ba3 {[%emt 0:20:05]} Rcc8 {[%emt 0:16:15]} 28. Nb4 {[%emt 0:24:55]} a5 {[%emt 0:13:47]} 29. Nd5 {[%emt 0:22:13]} Bxd5 {[%emt 0:14:08]} 30. Rxd5 {[%emt 0:14:08]} Rc7 {[%emt 0:21:52]} 31. f3 {[%emt 0:17:36]} Kg7 {[%emt 0:07:11]} 32. Kf2 {[%emt 0:17:19]} Rb8 {[%emt 0:06:08]} 33. Bf1 {[%emt 0:16:24]} Kf6 {[%emt 0:05:08]} 34. h4 {[%emt 0:15:09]} h5 {[%emt 0:05:30]} 35. Bd3 {[%emt 0:13:03]} Ke6 {[%emt 0:04:56]} 36. Ke3 {[%emt 0:04:56]} f5 {[%emt 0:04:03]} 37. f4 {[%emt 0:04:03]} a4 {[%emt 0:01:50]} 38. Bxc5 {[%emt 0:01:17]} bxc5 {[%emt 0:02:19]} 39. bxa4 {[%emt 0:00:51]} Rb4 {[%emt 0:00:51]} 40. exf5+ {[%emt 0:00:20]} gxf5 {[%emt 0:03:08]} 41. fxe5 {[%emt 0:22:47]} dxe5 {[%emt 0:33:17]} 42. Bxf5+ {[%emt 0:21:39]} Kxf5 {[%emt 0:29:29]} 43. Rf1+ {[%emt 0:21:59]} Ke6 {[%emt 0:29:58]} 44. Rxf8 {[%emt 0:21:49]} Rxc4 {[%emt 0:30:24]} 45. Rd2 {[%emt 0:18:03]} Rxa4 {[%emt 0:25:18]} 46. Re8+ {[%emt 0:17:21]} Kf5 {[%emt 0:17:21]} 47. Rf2+ {[%emt 0:16:44]} Kg4 {[%emt 0:24:20]} 48. Rxe5 {[%emt 0:12:35]} Kxg3 {[%emt 0:23:39]} 49. Rff5 {[%emt 0:23:39]} c4 {[%emt 0:17:48]} 50. Rxh5 {[%emt 0:08:30]} Rxa2 {[%emt 0:08:30]} 51. Rhg5+ {[%emt 0:07:57]} Kh3 {[%emt 0:07:57]} 52. Rc5 {[%emt 0:04:06]} Rxc5 {[%emt 0:04:06]} 53. Rh5 {[%emt 0:12:41]} Ra8 {[%emt 0:12:41] c7 0:12:41} 54. Z0 {[%emt 0:12:41] Bc7 0:12:41 --- 0:12:41 h5 0:12:41 --- 0:12:41 Qh7+ 0:12:41 --- 0:12:41 Ng8 0:12:41} 1/2-1/2

[Event "1.FrauenBL 2016-17"]
[Site "Berlin"]
[Date "2017.04.29"]
[Round "9.6"]
[White "Mader, Manuela"]
[Black "Kachiani-Gersinska, Ketino"]
[Result "1-0"]
[ECO "B19"]
[WhiteElo "2219"]
[BlackElo "2366"]
[Annotator "NA"]
[PlyCount "87"]
[EventDate "2017.??.??"]
[EventType "team-tourn"]
[EventCountry "GER"]
[SourceTitle "playchess.com"]
[Source "ChessBase"]
[SourceQuality "1"]
[WhiteTeam "Karlsruher SF"]
[BlackTeam "OSG Baden-Baden"]
[TimeControl "40/6000+30:3000+30"]

1. e4 {[%emt 1:30:25]} c6 {[%emt 1:30:25]} 2. d4 {[%emt 1:30:50]} d5 {[%emt 1:29:20]} 3. Nc3 {[%emt 1:31:14]} dxe4 {[%emt 1:29:43]} 4. Nxe4 {[%emt 1:31:40]} Bf5 {[%emt 1:32:06]} 5. Ng3 {[%emt 1:32:06]} Bg6 {[%emt 1:30:26]} 6. h4 {[%emt 1:30:26]} h6 {[%emt 1:32:29]} 7. Nf3 {[%emt 1:32:42]} Nd7 {[%emt 1:32:42]} 8. h5 {[%emt 1:33:05]} Bh7 {[%emt 1:28:40]} 9. Bd3 {[%emt 1:33:30]} Bxd3 {[%emt 1:28:57]} 10. Qxd3 {[%emt 1:33:57]} e6 {[%emt 1:29:01]} 11. Bd2 {[%emt 1:34:13]} Ngf6 {[%emt 1:29:06]} 12. O-O-O {[%emt 1:34:28]} Qc7 {[%emt 1:34:28]} 13. Ne4 {[%emt 1:25:18]} Be7 {[%emt 1:25:18]} 14. Kb1 {[%emt 1:18:12]} Rd8 {[%emt 1:16:09]} 15. Nxf6+ {[%emt 1:02:07]} Nxf6 {[%emt 1:02:07]} 16. Ne5 $11 {[%emt 1:00:25] LiveBook: 8 Games} Qb6 {[%emt 0:28:37]} 17. Bc1 {[%emt 0:50:08]} c5 {[%emt 0:13:53]} 18. Qg3 {[%emt 0:39:31]} cxd4 {[%emt 0:10:46]} 19. Qxg7 {[%emt 0:39:01]} Rh7 {[%emt 0:11:13]} 20. Qg3 {[%emt 0:39:25]} Rd5 {[%emt 0:11:17]} 21. Rd3 {[%emt 0:22:34]} Qc7 {[%emt 0:09:38]} 22. f4 {[%emt 0:22:39]} Rc5 {[%emt 0:07:59]} 23. Rxd4 {[%emt 0:16:29]} Rxc2 {[%emt 0:08:20]} 24. Rhd1 {[%emt 0:08:54]} Rc5 {[%emt 0:08:54]} 25. Nd7 {[%emt 0:06:43]} Rh8 {[%emt 0:00:17]} 26. Qg7 {[%emt 0:03:17]} Nxd7 {[%emt 0:00:36]} 27. Rxd7 {[%emt 0:03:44]} Rxc1+ {[%emt 0:00:37]} 28. Rxc1 {[%emt 0:04:11]} Qxd7 {[%emt 0:01:03]} 29. Qxh8+ {[%emt 0:04:37]} Bf8 {[%emt 0:01:29]} 30. Qc3 {[%emt 0:03:16]} Bd6 {[%emt 0:00:34]} 31. Rd1 {[%emt 0:01:08]} Ke7 {[%emt 0:01:08]} 32. g3 {[%emt 0:00:24]} Qb5 {[%emt 0:00:39]} 33. Qd3 {[%emt 0:00:41]} Qc6 {[%emt 0:00:53]} 34. f5 {[%emt 0:00:41]} e5 {[%emt 0:00:41]} 35. g4 {[%emt 0:00:49]} a5 {[%emt 0:00:18]} 36. f6+ {[%emt 0:01:03]} Kd7 {[%emt 0:00:41]} 37. g5 {[%emt 0:01:28]} e4 {[%emt 0:00:49]} 38. Qh3+ {[%emt 0:01:38]} Kc7 {[%emt 0:00:48]} 39. Rc1 {[%emt 0:00:48]} Bc5 {[%emt 0:01:13]} 40. Qf5 {[%emt 0:01:09]} b6 {[%emt 0:01:30]} 41. Qe5+ {[%emt 0:20:38]} Kb7 {[%emt 0:31:31]} 42. g6 {[%emt 0:19:33]} e3 {[%emt 0:31:43]} 43. g7 {[%emt 0:18:54]} Qc8 {[%emt 0:26:20]} 44. Qd5+ {[%emt 0:18:31]} 1-0

[Event "1.FrauenBL 2016-17"]
[Site "Berlin"]
[Date "2017.04.29"]
[Round "9.6"]
[White "Dengler, Dijana"]
[Black "Georgescu, Lena"]
[Result "0-1"]
[ECO "A81"]
[WhiteElo "2046"]
[BlackElo "2187"]
[Annotator "NA"]
[PlyCount "94"]
[EventDate "2017.??.??"]
[EventType "team-tourn"]
[EventCountry "GER"]
[SourceTitle "playchess.com"]
[Source "ChessBase"]
[SourceQuality "1"]
[WhiteTeam "FC Bayern München"]
[BlackTeam "SG Augsburg"]
[TimeControl "40/6000+30:3000+30"]

1. d4 {[%emt 1:30:23]} f5 {[%emt 1:29:51]} 2. Nf3 {[%emt 1:29:10]} d6 {[%emt 1:29:10]} 3. b3 {[%emt 1:29:35]} Nf6 {[%emt 1:29:53]} 4. Bb2 {[%emt 1:29:53]} g6 {[%emt 1:29:51]} 5. g3 {[%emt 1:29:51]} Bg7 {[%emt 1:30:13]} 6. Bg2 {[%emt 1:26:01]} O-O {[%emt 1:26:01]} 7. O-O {[%emt 1:30:36]} Qe8 {[%emt 1:30:44]} 8. Nbd2 {[%emt 1:23:30]} Nc6 {[%emt 1:30:54]} 9. Nc4 {[%emt 1:20:03]} e6 {[%emt 1:31:06]} 10. a4 {[%emt 1:19:43]} Bd7 {[%emt 1:24:35]} 11. Rb1 {[%emt 1:24:35]} h6 {[%emt 1:20:22]} 12. e3 {[%emt 1:01:19]} g5 {[%emt 1:19:06]} 13. Re1 {[%emt 0:55:59]} Qg6 {[%emt 0:55:59]} 14. Nfd2 {[%emt 0:54:56]} Rae8 {[%emt 0:54:56]} 15. b4 {[%emt 0:39:35]} Ne4 {[%emt 0:58:41]} 16. b5 {[%emt 0:58:41]} Ne7 {[%emt 0:54:32]} 17. f3 {[%emt 0:32:40]} Nxd2 {[%emt 0:53:30]} 18. Qxd2 {[%emt 0:31:26]} f4 {[%emt 0:31:26]} 19. e4 {[%emt 0:29:35]} g4 {[%emt 0:51:05]} 20. Qf2 {[%emt 0:19:38]} fxg3 {[%emt 0:46:26]} 21. hxg3 {[%emt 0:19:53]} gxf3 {[%emt 0:19:53]} 22. Bxf3 {[%emt 0:17:50]} e5 {[%emt 0:42:48]} 23. dxe5 {[%emt 0:13:10]} Qf7 {[%emt 0:33:54]} 24. Nd2 {[%emt 0:33:54]} Ng6 {[%emt 0:26:08]} 25. Rf1 {[%emt 0:08:15]} Nxe5 {[%emt 0:24:33]} 26. Bg2 {[%emt 0:08:20]} Qh5 {[%emt 0:22:54]} 27. Nf3 {[%emt 0:22:54]} Bg4 {[%emt 0:20:23]} 28. Bxe5 {[%emt 0:03:40]} Bxe5 {[%emt 0:20:41]} 29. Rb3 {[%emt 0:00:22]} Re7 {[%emt 0:19:39]} 30. Qe1 {[%emt 0:00:19]} Bxf3 {[%emt 0:14:54]} 31. Bxf3 {[%emt 0:00:27]} Qh3 {[%emt 0:00:27]} 32. Bg2 {[%emt 0:00:43]} Bd4+ {[%emt 0:14:55]} 33. Re3 {[%emt 0:00:31]} Qg4 {[%emt 0:11:40]} 34. Rxf8+ {[%emt 0:11:40]} Kxf8 {[%emt 0:12:02]} 35. Kh2 {[%emt 0:00:56]} Qh5+ {[%emt 0:11:10]} 36. Bh3 {[%emt 0:01:03]} Bxe3 {[%emt 0:11:17]} 37. Qxe3 {[%emt 0:01:30]} Rf7 {[%emt 0:11:02]} 38. Kg2 {[%emt 0:01:34]} Qg5 {[%emt 0:09:29]} 39. Qxg5 {[%emt 0:01:21]} hxg5 {[%emt 0:09:54]} 40. Be6 {[%emt 0:00:54]} Rf6 {[%emt 0:09:28]} 41. Bc8 {[%emt 0:23:50]} b6 {[%emt 0:38:54]} 42. Bf5 {[%emt 0:19:02]} Ke7 {[%emt 0:34:19]} 43. Kf3 {[%emt 0:08:44]} Rh6 {[%emt 0:34:30]} 44. Ke3 {[%emt 0:08:30]} Rh2 {[%emt 0:34:35]} 45. Kd3 {[%emt 0:08:02]} Kf6 {[%emt 0:34:29]} 46. Kc3 {[%emt 0:07:14]} Ke5 {[%emt 0:34:34]} 47. Kb3 {[%emt 0:06:59]} d5 {[%emt 0:34:41]} 0-1

[Event "1.FrauenBL 2016-17"]
[Site "Berlin"]
[Date "2017.04.29"]
[Round "9.6"]
[White "Manusina, Nicole"]
[Black "v d  Weth-v  Nordheim, Petra"]
[Result "1-0"]
[ECO "D51"]
[WhiteElo "1908"]
[BlackElo "1978"]
[Annotator "NA"]
[PlyCount "55"]
[EventDate "2017.??.??"]
[EventType "team-tourn"]
[EventCountry "GER"]
[SourceTitle "playchess.com"]
[Source "ChessBase"]
[SourceQuality "1"]
[WhiteTeam "SK Lehrte"]
[BlackTeam "SV Medizin Erfurt"]
[TimeControl "40/6000+30:3000+30"]

1. d4 {[%emt 1:30:30]} d5 {[%emt 1:30:06]} 2. c4 {[%emt 1:30:23]} e6 {[%emt 1:30:26]} 3. Nc3 {[%emt 1:30:45]} Nf6 {[%emt 1:28:03]} 4. Bg5 {[%emt 1:29:12]} c6 {[%emt 1:28:18]} 5. e3 {[%emt 1:28:41]} Bb4 {[%emt 1:28:05]} 6. Qc2 {[%emt 1:27:09]} Nbd7 {[%emt 1:25:03]} 7. cxd5 {[%emt 1:27:18]} exd5 {[%emt 1:23:26]} 8. Bd3 {[%emt 1:27:31]} h6 {[%emt 1:18:52]} 9. Bh4 {[%emt 1:27:33]} O-O {[%emt 1:10:56]} 10. Nf3 {[%emt 1:27:25]} Qa5 {[%emt 1:27:25]} 11. O-O {[%emt 1:24:38]} Bxc3 {[%emt 0:58:52]} 12. bxc3 {[%emt 1:24:31]} b5 {[%emt 0:56:47]} 13. a4 {[%emt 0:56:47]} Qb6 {[%emt 0:48:23]} 14. Rfb1 {[%emt 1:13:00]} Ba6 {[%emt 0:48:41]} 15. axb5 {[%emt 1:05:59]} Bxb5 {[%emt 0:46:29]} 16. c4 {[%emt 1:03:25]} dxc4 {[%emt 0:45:00]} 17. Bxc4 {[%emt 1:02:41]} Rac8 {[%emt 1:02:41]} 18. Bxf6 {[%emt 0:36:52]} Nxf6 {[%emt 0:55:52]} 19. Ne5 {[%emt 0:55:26]} a6 {[%emt 0:27:30]} 20. Qf5 {[%emt 0:27:30]} Qc7 {[%emt 0:20:23]} 21. Rc1 {[%emt 0:43:28]} Qb7 {[%emt 0:43:28]} 22. Rab1 {[%emt 0:15:16]} Rc7 {[%emt 0:14:59]} 23. Ba2 {[%emt 0:34:57]} Ne8 {[%emt 0:10:10]} 24. Qf4 {[%emt 0:30:22]} Nd6 {[%emt 0:09:25]} 25. Rc5 {[%emt 0:28:47]} Qc8 {[%emt 0:05:21]} 26. Rbc1 {[%emt 0:27:06]} Nb7 {[%emt 0:27:06]} 27. R5c3 {[%emt 0:26:54]} Nd8 {[%emt 0:26:54]} 28. d5 {[%emt 0:26:15]} 1-0

[Event "1.FrauenBL 2016-17"]
[Site "Berlin"]
[Date "2017.04.29"]
[Round "9.7"]
[White "Tammert, Iamze"]
[Black "Brendel, Bergit"]
[Result "1-0"]
[ECO "B44"]
[WhiteElo "2290"]
[BlackElo "2094"]
[Annotator "NA"]
[PlyCount "85"]
[EventDate "2017.??.??"]
[EventType "team-tourn"]
[EventCountry "GER"]
[SourceTitle "playchess.com"]
[Source "ChessBase"]
[SourceQuality "1"]
[WhiteTeam "OSG Baden-Baden"]
[BlackTeam "Karlsruher SF"]
[TimeControl "40/6000+30:3000+30"]

1. c4 {[%emt 1:30:23]} c5 {[%emt 1:30:21]} 2. Nc3 {[%emt 1:30:39]} Nc6 {[%emt 1:30:39]} 3. Nf3 {[%emt 1:30:43]} e6 {[%emt 1:31:01]} 4. d4 {[%emt 1:30:14]} cxd4 {[%emt 1:28:46]} 5. Nxd4 {[%emt 1:30:18]} Nf6 {[%emt 1:24:13]} 6. e4 {[%emt 1:20:57]} Bb4 {[%emt 1:12:25]} 7. f3 {[%emt 1:20:30]} Qa5 {[%emt 1:06:18]} 8. Nxc6 {[%emt 0:56:16]} dxc6 {[%emt 1:02:26]} 9. Bd2 {[%emt 1:02:26]} Qc7 {[%emt 0:56:46]} 10. Qe2 {[%emt 0:50:58]} e5 {[%emt 0:58:52]} 11. Qf2 {[%emt 0:48:32]} O-O {[%emt 0:48:32]} 12. g4 {[%emt 0:53:49]} Nd7 {[%emt 0:49:19]} 13. a3 {[%emt 0:49:19]} Bc5 {[%emt 0:45:01]} 14. Be3 $17 {[%emt 0:42:34]} Bxe3 {[%emt 0:45:02]} 15. Qxe3 {[%emt 0:45:02]} Qb6 {[%emt 0:45:01]} 16. Nd1 {[%emt 0:27:16]} Qxe3+ {[%emt 0:27:45]} 17. Nxe3 {[%emt 0:27:45]} Nc5 {[%emt 0:40:11]} 18. Rd1 {[%emt 0:27:46]} Ne6 {[%emt 0:38:54]} 19. Nc2 {[%emt 0:26:10]} Nf4 {[%emt 0:37:56]} 20. Kf2 {[%emt 0:22:48]} Be6 {[%emt 0:22:48]} 21. Ne3 {[%emt 0:22:49]} Rfd8 {[%emt 0:35:53]} 22. Be2 {[%emt 0:22:49]} Rd4 {[%emt 0:29:55]} 23. b3 {[%emt 0:13:24]} Rad8 {[%emt 0:28:28]} 24. Ng2 {[%emt 0:10:01]} Rxd1 {[%emt 0:26:07]} 25. Rxd1 {[%emt 0:10:30]} Rxd1 {[%emt 0:26:22]} 26. Bxd1 {[%emt 0:10:59]} Nxg2 {[%emt 0:11:28]} 27. Kxg2 {[%emt 0:11:28]} c5 {[%emt 0:11:28]} 28. g5 {[%emt 0:06:41]} f6 {[%emt 0:24:48]} 29. gxf6 {[%emt 0:06:39]} gxf6 {[%emt 0:25:13]} 30. f4 {[%emt 0:05:45]} Bd7 {[%emt 0:10:19]} 31. Kg3 {[%emt 0:05:16]} Kg7 {[%emt 0:08:55]} 32. Bh5 {[%emt 0:08:55]} Bc6 {[%emt 0:08:50]} 33. Kf3 {[%emt 0:03:40]} f5 {[%emt 0:03:14]} 34. fxe5 {[%emt 0:04:03]} Bxe4+ {[%emt 0:03:37]} 35. Kf4 {[%emt 0:04:27]} b6 {[%emt 0:03:48]} 36. Be8 {[%emt 0:03:48]} Kf8 {[%emt 0:03:47]} 37. Bd7 {[%emt 0:03:47]} Bc2 {[%emt 0:04:10]} 38. b4 {[%emt 0:02:06]} Bd3 {[%emt 0:02:06]} 39. bxc5 {[%emt 0:02:27]} bxc5 {[%emt 0:01:42]} 40. Bxf5 {[%emt 0:02:40]} Bxc4 {[%emt 0:01:55]} 41. Bxh7 {[%emt 0:03:09]} Be2 {[%emt 0:00:50]} 42. Bf5 {[%emt 0:29:52]} Ke7 {[%emt 0:30:31]} 43. Ke3 {[%emt 0:30:31]} 1-0